fUST/lending_fUST_20250311
["ID","MTS","AMOUNT","RATE_DAILY","PERIOD"]
[355902968,1741702234519,-8960.17395497,0.00030034,2]
[355902969,1741702234529,-18006.25858562,0.00030034,2]
[355902970,1741702234543,-400.42318152,0.00030034,2]
[355903001,1741702237889,-1668.18258112,0.00030034,2]
[355903036,1741702240028,-8078.85957834,0.00030034,2]
[355903037,1741702240038,-12554.89715468,0.00030038,5]
[355903038,1741702240048,-500.0,0.00030044,2]
[355903039,1741702240058,-24900.0,0.00030044,2]
[355903040,1741702240072,-500.0,0.00030318,2]
[355903041,1741702240081,-2781.45019254,0.00030358,2]
[355903042,1741702240091,-12554.89715468,0.00030417,5]
[355903043,1741702240100,-500.0,0.0003076,7]
[355903044,1741702240110,-12554.89715468,0.00030797,5]
[355903045,1741702240120,-2000.0,0.000308,2]
[355903046,1741702240130,-2000.0,0.000308,3]
[355903047,1741702240140,-1000.0,0.00031,120]
[355903048,1741702240150,-298.42502168,0.00031,2]
[355903049,1741702240159,-1000.0,0.00031,120]
[355903050,1741702240169,-215.11067681,0.00031068,2]
[355903051,1741702240179,-12554.89715468,0.00031176,5]
[355903052,1741702240189,-420.0,0.00031182,2]
[355903053,1741702240199,-2862.86876181,0.0003132,2]
[355903054,1741702240209,-2330.7772538,0.0003135,4]
[355903055,1741702240218,-3863.74,0.00031393,3]
[355903056,1741702240228,-1931.86,0.00031393,3]
[355903057,1741702240505,-965.94,0.00031393,3]
[355903058,1741702240519,-482.96,0.00031393,3]
[355903059,1741702240530,-10985.5,0.00031394,3]
[355903060,1741702240541,-15454.94,0.00031394,3]
[355903061,1741702240552,-7301.52381548,0.00031394,3]
[355903062,1741702240566,-425.95618452,0.00031394,3]
[355903063,1741702240578,-160.0,0.00031394,3]
[355903064,1741702240589,-186.83795171,0.0003141,2]
[355903065,1741702240602,-493.28256153,0.0003141,2]
[355903066,1741702241107,3000.0,0.0003,30]
[355903104,1741702243764,-2182.74824855,0.0003141,2]
[355903105,1741702243775,-28153.7239266,0.0003141,2]
[355903106,1741702243785,-416.66666667,0.0003142,3]
[355903107,1741702243795,-15112.75741646,0.00031431,2]
[355903108,1741702243806,-60085.18393924,0.0003146,2]
[355903110,1741702243820,-494.18,0.0003146,2]
[355903111,1741702243832,-15562.74556253,0.0003146,2]
[355903113,1741702243845,-612.0994314,0.0003146,2]
[355903120,1741702244086,-6.93896631,0.0003146,2]
[355903121,1741702244106,-3977.80586736,0.0003146,2]
[355903138,1741702246067,-841.8,0.000304,8]
[355903139,1741702246088,-158.2,0.000304,8]
[355903140,1741702246099,-189.93332376,0.000309,8]
[355903154,1741702249050,3000.0,0.0003,30]
[355903155,1741702254828,3000.0,0.0003,30]
[355903156,1741702256288,3000.0,0.0003,30]
[355903157,1741702257088,3000.0,0.0003,30]
[355903160,1741702266043,3000.0,0.0003,30]
[355903161,1741702267220,3000.0,0.0003,30]
[355903163,1741702268374,3000.0,0.0003,30]
[355903164,1741702269293,3000.0,0.0003,30]
[355903166,1741702270302,3000.0,0.0003,30]
[355903167,1741702270989,3000.0,0.0003,30]
[355903168,1741702271732,3000.0,0.0003,30]
[355903170,1741702272375,3000.0,0.0003,30]
[355903172,1741702278778,3000.0,0.0003,30]
[355903173,1741702279676,3000.0,0.0003,30]
[355903174,1741702280290,3000.0,0.0003,30]
[355903175,1741702280498,500.0,0.0003,30]
[355903176,1741702280937,3000.0,0.0003,30]
[355903177,1741702281543,3000.0,0.0003,30]
[355903178,1741702282059,3000.0,0.0003,30]
[355903180,1741702304747,2489.0,0.0003,30]
[355903181,1741702334005,1000.0,0.0003,30]
[355903182,1741702341124,900.7,0.0003,30]
[355903185,1741702431360,100000.0,0.0003,30]
[355903186,1741702444518,34727.32812745,0.0003,30]
[355903196,1741702795060,7588.55809162,0.0002501,3]
[355903197,1741702808038,5000.0,0.0002501,2]
[355903199,1741702823608,5000.0,0.0002501,2]
[355903200,1741702835129,160.0,0.0002,3]
[355903201,1741702835570,160.0,0.0002,3]
[355903203,1741702840032,5000.0,0.0002501,2]
[355903204,1741702856484,5000.0,0.0002501,2]
[355903205,1741702873100,4531.97299126,0.0002501,2]
[355903211,1741703148123,160.0,0.0002,3]
[355903214,1741703166915,500.0,0.00025,2]
[355903216,1741703189831,200.0,0.00025,2]
[355903217,1741703196434,300.0,0.00025,2]
[355903221,1741703249335,49500.0,0.00025,7]
[355903229,1741703295023,3690.30525137,0.00021,5]
[355903231,1741703316469,580.54517995,0.00018,4]
[355903232,1741703317693,1094.15590496,0.00025,4]
[355903235,1741703321320,20222.35109636,0.00015,4]
[355903310,1741703432081,-43558.72879709,0.00026409,2]
[355903322,1741703438004,-320.566,0.00026409,2]
[355903323,1741703438145,-7824.3646319,0.00026409,2]
[355903324,1741703438159,-8168.25388791,0.00026409,2]
[355903325,1741703438170,-160.44400778,0.0002684,2]
[355903327,1741703438181,-500.0,0.0002684,2]
[355903329,1741703438193,-164.13955416,0.0002684,2]
[355903330,1741703438206,-335.86044584,0.0002684,2]
[355903331,1741703438218,-500.0,0.0002684,2]
[355903332,1741703438230,-219.75382492,0.0002684,2]
[355903333,1741703438241,-472.00599499,0.0002684,2]
[355903334,1741703438252,-500.0,0.0002684,2]
[355903335,1741703438262,-500.0,0.0002684,2]
[355903336,1741703438272,-500.0,0.0002684,2]
[355903337,1741703438282,-558.32215513,0.0002684,2]
[355903338,1741703438292,-500.0,0.0002684,2]
[355903339,1741703438302,-500.0,0.0002684,2]
[355903340,1741703438311,-419.94782723,0.0002684,2]
[355903341,1741703438321,-535.54140704,0.0002684,2]
[355903342,1741703438330,-500.0,0.0002684,2]
[355903343,1741703438344,-500.0,0.0002684,2]
[355903344,1741703438355,-544.5760995,0.0002684,2]
[355903345,1741703438365,-500.0,0.0002684,2]
[355903346,1741703438375,-500.0,0.0002684,2]
[355903347,1741703438385,-500.0,0.0002684,2]
[355903348,1741703438395,-500.92534288,0.00026848,2]
[355903349,1741703438404,-500.0,0.00026848,2]
[355903350,1741703438414,-500.0,0.00026848,2]
[355903351,1741703438424,-588.52893888,0.00026848,2]
[355903353,1741703438434,-500.0,0.00026848,2]
[355903354,1741703438444,-500.0,0.00026848,2]
[355903355,1741703438453,-165.19941304,0.00026848,2]
[355903356,1741703438462,-500.0,0.00026848,2]
[355903357,1741703438473,-500.0,0.00026848,2]
[355903358,1741703438482,-500.0,0.00026848,2]
[355903359,1741703438493,-500.0,0.00026848,2]
[355903360,1741703438502,-500.0,0.00026848,2]
[355903361,1741703438512,-500.0,0.00026848,2]
[355903362,1741703438521,-500.0,0.00026848,2]
[355903363,1741703438531,-500.0,0.00026848,2]
[355903364,1741703438541,-500.0,0.00026848,2]
[355903365,1741703438550,-500.0,0.00026848,2]
[355903366,1741703438560,-500.0,0.00026848,2]
[355903367,1741703438569,-500.0,0.00026848,2]
[355903368,1741703438579,-500.0,0.00026848,2]
[355903369,1741703438592,-500.0,0.00026848,2]
[355903370,1741703438602,-500.0,0.00026848,2]
[355903371,1741703438611,-500.0,0.00026848,2]
[355903372,1741703438621,-500.0,0.00026848,2]
[355903373,1741703438630,-500.0,0.00026848,2]
[355903374,1741703438639,-464.37454643,0.00026848,2]
[355903375,1741703438648,-500.0,0.00026848,2]
[355903376,1741703438658,-500.0,0.00026848,2]
[355903377,1741703438667,-500.0,0.00026848,2]
[355903378,1741703438677,-500.0,0.00026848,2]
[355903379,1741703438686,-500.0,0.00026848,2]
[355903380,1741703438696,-500.0,0.00026848,2]
[355903381,1741703438705,-500.0,0.00026848,2]
[355903382,1741703438714,-500.0,0.00026848,2]
[355903383,1741703438723,-500.0,0.00026848,2]
[355903384,1741703438733,-500.0,0.00026848,2]
[355903385,1741703438742,-500.0,0.00026848,2]
[355903386,1741703438752,-500.0,0.00026848,2]
[355903387,1741703438762,-500.0,0.00026848,2]
[355903388,1741703438771,-500.0,0.00026848,2]
[355903389,1741703438781,-500.0,0.00026848,2]
[355903390,1741703438791,-500.0,0.00026848,2]
[355903391,1741703438801,-500.0,0.00026848,2]
[355903392,1741703438810,-500.0,0.00026848,2]
[355903393,1741703438820,-500.0,0.00026848,2]
[355903394,1741703438829,-500.0,0.00026848,2]
[355903395,1741703438842,-500.0,0.00026848,2]
[355903396,1741703438852,-500.0,0.00026848,2]
[355903397,1741703438865,-500.0,0.00026848,2]
[355903398,1741703438874,-500.0,0.00026848,2]
[355903399,1741703438884,-500.0,0.00026848,2]
[355903400,1741703438894,-500.0,0.00026848,2]
[355903401,1741703438904,-500.0,0.00026848,2]
[355903402,1741703438913,-500.0,0.00026848,2]
[355903403,1741703438922,-500.0,0.00026848,2]
[355903404,1741703438932,-190.969892,0.00026848,2]
[355903405,1741703438942,-500.0,0.00026848,2]
[355903406,1741703438952,-500.0,0.00026848,2]
[355903407,1741703438962,-500.0,0.00026848,2]
[355903408,1741703438971,-500.0,0.00026848,2]
[355903409,1741703438980,-500.0,0.00026848,2]
[355903410,1741703438990,-500.0,0.00026848,2]
[355903411,1741703439000,-500.0,0.00026848,2]
[355903412,1741703439010,-500.0,0.00026848,2]
[355903413,1741703439019,-177.34050829,0.00026848,2]
[355903414,1741703439029,-500.0,0.00026848,2]
[355903415,1741703439039,-500.0,0.00026848,2]
[355903416,1741703439048,-500.0,0.00026848,2]
[355903417,1741703439058,-500.0,0.00026848,2]
[355903418,1741703439068,-500.0,0.00026848,2]
[355903419,1741703439078,-500.0,0.00026848,2]
[355903420,1741703439092,-499.99999999,0.00026848,2]
[355903421,1741703439101,-559.72398679,0.00026848,2]
[355903422,1741703439110,-185.29,0.00026889,3]
[355903423,1741703439120,-2086.08764444,0.00026899,2]
[355903424,1741703439129,-9758.49488633,0.000269,4]
[355903425,1741703439138,-81650.85257902,0.00027,2]
[355903426,1741703439147,-1816.12899785,0.00027248,2]
[355903427,1741703439157,-9758.49488623,0.00027348,4]
[355903428,1741703439167,-154.88621598,0.00027397,3]
[355903429,1741703439176,-500.0,0.00027397,3]
[355903430,1741703439186,-500.0,0.00027397,3]
[355903431,1741703439197,-663.62,0.00027397,3]
[355903432,1741703439206,-9999.0,0.00027397,2]
[355903433,1741703439215,-500.0,0.00027397,3]
[355903434,1741703439225,-500.0,0.00027397,3]
[355903435,1741703439234,-504.10736826,0.00027397,3]
[355903436,1741703439244,-893.05,0.00027397,3]
[355903437,1741703439253,-758.04,0.00027397,3]
[355903438,1741703439263,-500.0,0.00027397,2]
[355903439,1741703439272,-505.433754,0.00027397,3]
[355903440,1741703439282,-500.0,0.00027397,3]
[355903441,1741703439292,-500.0,0.00027397,3]
[355903442,1741703439302,-500.0,0.00027397,3]
[355903443,1741703439311,-500.0,0.00027671,3]
[355903444,1741703439320,-663.62,0.00027671,3]
[355903445,1741703439330,-9999.0,0.00027671,2]
[355903446,1741703439343,-500.0,0.00027671,3]
[355903447,1741703439352,-500.0,0.00027671,3]
[355903448,1741703439362,-893.05,0.00027671,3]
[355903449,1741703439371,-758.04,0.00027671,3]
[355903450,1741703439382,-500.0,0.00027671,2]
[355903451,1741703439391,-524.70834146,0.00027671,3]
[355903452,1741703439400,-519.17544201,0.00027671,3]
[355903453,1741703439410,-304.0360492,0.00027736,2]
[355903454,1741703439420,-9758.49488623,0.00027797,4]
[355903455,1741703439429,-249.9688749,0.000279,2]
[355903456,1741703439439,-500.0,0.00027944,2]
[355903457,1741703439448,-336.45053899,0.00027944,2]
[355903458,1741703439458,-500.0,0.00027945,3]
[355903459,1741703439467,-663.62,0.00027945,3]
[355903460,1741703439476,-9999.0,0.00027945,2]
[355903461,1741703439486,-514.75927082,0.00027945,3]
[355903462,1741703439495,-500.0,0.00027945,3]
[355903463,1741703439504,-893.05,0.00027945,3]
[355903464,1741703439514,-758.04,0.00027945,3]
[355903465,1741703439524,-500.0,0.00027945,2]
[355903468,1741703439534,-899.40880599,0.0002801,2]
[355903471,1741703439543,-817.05773284,0.0002801,2]
[355903473,1741703439553,-500.0,0.0002801,30]
[355903474,1741703439562,-500.0,0.0002801,30]
[355903475,1741703439572,-222.81454842,0.0002801,30]
[355903476,1741703439582,-502.53404922,0.0002801,30]
[355903477,1741703439596,-500.0,0.0002801,30]
[355903478,1741703439606,-500.0,0.0002801,30]
[355903479,1741703439615,-500.0,0.0002801,30]
[355903480,1741703439625,-500.0,0.0002801,30]
[355903482,1741703439635,-500.0,0.00028219,3]
[355903483,1741703439645,-663.62,0.00028219,3]
[355903485,1741703439655,-9999.0,0.00028219,2]
[355903486,1741703439666,-893.05,0.00028219,3]
[355903487,1741703439676,-500.0,0.00028219,3]
[355903488,1741703439686,-758.04,0.00028219,3]
[355903489,1741703439698,-500.0,0.00028219,2]
[355903490,1741703439708,-9758.49488623,0.00028245,5]
[355903491,1741703439718,-1816.12899785,0.00028262,2]
[355903492,1741703439728,-2086.0876444,0.00028328,2]
[355903493,1741703439739,-500.0,0.00028493,3]
[355903494,1741703439749,-663.62,0.00028493,3]
[355903495,1741703439759,-9999.0,0.00028493,2]
[355903496,1741703439770,-893.05,0.00028493,3]
[355903497,1741703439780,-500.0,0.00028493,3]
[355903498,1741703439790,-758.04,0.00028493,3]
[355903499,1741703439801,-500.0,0.00028493,2]
[355903500,1741703439811,-9758.49488623,0.00028693,5]
[355903501,1741703439821,-500.0,0.00028767,3]
[355903502,1741703439831,-663.62,0.00028767,3]
[355903503,1741703439848,-9999.0,0.00028767,2]
[355903504,1741703439858,-893.05,0.00028767,3]
[355903505,1741703439868,-406.54690595,0.00028767,3]
[355903506,1741703439878,-758.04,0.00028767,3]
[355903507,1741703439891,-500.0,0.00028767,2]
[355903508,1741703439902,-500.0,0.00029041,3]
[355903509,1741703439912,-663.62,0.00029041,3]
[355903510,1741703439923,-9999.0,0.00029041,2]
[355903511,1741703439934,-893.05,0.00029041,3]
[355903512,1741703439945,-758.04,0.00029041,3]
[355903513,1741703439954,-500.0,0.00029041,2]
[355903514,1741703439964,-9758.49488623,0.00029141,5]
[355903515,1741703439975,-26080.2056616,0.00029269,2]
[355903516,1741703439986,-1816.12899785,0.00029276,2]
[355903517,1741703439997,-4228.03,0.00029278,3]
[355903518,1741703440008,-512.47092115,0.00029278,3]
[355903519,1741703440019,-1643.54,0.00029278,3]
[355903520,1741703440031,-1000.0,0.00029278,7]
[355903521,1741703440042,-649.37,0.00029278,3]
[355903522,1741703440053,-501.42512931,0.00029278,3]
[355903523,1741703440064,-574.26,0.00029278,3]
[355903524,1741703440075,-500.0,0.00029278,3]
[355903525,1741703440085,-439.64046576,0.00029278,3]
[355903526,1741703440106,-1771.531598,0.00029278,3]
[355903527,1741703440117,-160.0,0.00029278,3]
[355903528,1741703440128,-500.0,0.00029315,3]
[355903529,1741703440140,-663.62,0.00029315,3]
[355903530,1741703440151,-9999.0,0.00029315,2]
[355903531,1741703440162,-893.05,0.00029315,3]
[355903532,1741703440173,-758.04,0.00029315,3]
[355903533,1741703440184,-500.0,0.00029315,2]
[355903534,1741703440195,-500.0,0.00029399,2]
[355903535,1741703440205,-500.0,0.00029399,3]
[355903536,1741703440215,-500.0,0.00029399,3]
[355903537,1741703440225,-945.94,0.00029399,3]
[355903538,1741703440235,-509.37661527,0.00029399,3]
[355903539,1741703440245,-887.92,0.00029399,3]
[355903540,1741703440255,-873.7,0.00029399,3]
[355903541,1741703440264,-469.01124277,0.00029399,3]
[355903542,1741703440273,-500.0,0.00029399,3]
[355903543,1741703440283,-500.0,0.00029399,3]
[355903544,1741703440293,-1018.87,0.00029399,3]
[355903545,1741703440303,-500.0,0.00029399,3]
[355903547,1741703440313,-737.11,0.00029399,3]
[355903549,1741703440323,-500.0,0.00029399,3]
[355903551,1741703440333,-500.0,0.00029399,3]
[355903553,1741703440348,-500.0,0.00029399,3]
[355903555,1741703440358,-797.16,0.00029399,3]
[355903557,1741703440367,-500.0,0.00029399,3]
[355903559,1741703440376,-673.62,0.00029399,3]
[355903561,1741703440386,-500.0,0.00029399,3]
[355903563,1741703440395,-1928.19,0.00029399,3]
[355903565,1741703440405,-500.0,0.00029399,3]
[355903567,1741703440414,-712.27,0.00029399,3]
[355903568,1741703440424,-4228.03,0.00029552,3]
[355903569,1741703440434,-1643.54,0.00029552,3]
[355903571,1741703440447,-1000.0,0.00029552,7]
[355903572,1741703440457,-649.37,0.00029552,3]
[355903573,1741703440467,-574.26,0.00029552,3]
[355903574,1741703440476,-500.0,0.00029552,3]
[355903588,1741703440774,-500.0,0.00029589,3]
[355903589,1741703440786,-663.62,0.00029589,3]
[355903590,1741703440796,-9999.0,0.00029589,2]
[355903591,1741703440806,-893.05,0.00029589,3]
[355903592,1741703440816,-758.04,0.00029589,3]
[355903594,1741703440825,-500.0,0.00029589,2]
[355903595,1741703440835,-9758.49488623,0.0002959,5]
[355903596,1741703440851,-500.0,0.00029673,2]
[355903597,1741703440863,-500.0,0.00029673,3]
[355903598,1741703440873,-500.0,0.00029673,3]
[355903599,1741703440883,-945.94,0.00029673,3]
[355903600,1741703440895,-887.92,0.00029673,3]
[355903601,1741703440906,-873.7,0.00029673,3]
[355903602,1741703440916,-500.0,0.00029673,3]
[355903603,1741703440926,-1018.87,0.00029673,3]
[355903604,1741703440937,-500.0,0.00029673,3]
[355903606,1741703440948,-737.11,0.00029673,3]
[355903608,1741703440959,-500.0,0.00029673,3]
[355903610,1741703440969,-500.0,0.00029673,3]
[355903611,1741703440980,-500.0,0.00029673,3]
[355903612,1741703440991,-797.16,0.00029673,3]
[355903613,1741703441002,-500.0,0.00029673,3]
[355903614,1741703441013,-673.62,0.00029673,3]
[355903615,1741703441024,-500.0,0.00029673,3]
[355903617,1741703441035,-1928.19,0.00029673,3]
[355903618,1741703441047,-712.27,0.00029673,3]
[355903619,1741703441057,-1805.6120155,0.00029726,2]
[355903620,1741703441067,-2086.0876444,0.00029756,2]
[355903621,1741703441077,-4228.03,0.00029826,3]
[355903622,1741703441089,-1643.54,0.00029826,3]
[355903623,1741703441105,-1000.0,0.00029826,7]
[355903624,1741703441115,-649.37,0.00029826,3]
[355903625,1741703441125,-574.26,0.00029826,3]
[355903626,1741703441135,-511.82651344,0.00029826,3]
[355903627,1741703441145,-500.0,0.00029863,3]
[355903628,1741703441155,-663.62,0.00029863,3]
[355903629,1741703441165,-9999.0,0.00029863,2]
[355903630,1741703441175,-893.05,0.00029863,3]
[355903631,1741703441186,-758.04,0.00029863,3]
[355903632,1741703441196,-500.0,0.00029863,2]
[355903633,1741703441207,-844381.33409,0.000299,2]
[355903634,1741703441217,-500.0,0.00029947,2]
[355903635,1741703441227,-500.0,0.00029947,3]
[355903636,1741703441236,-500.0,0.00029947,3]
[355903637,1741703441246,-945.94,0.00029947,3]
[355903638,1741703441255,-887.92,0.00029947,3]
[355903639,1741703441265,-873.7,0.00029947,3]
[355903640,1741703441274,-500.0,0.00029947,3]
[355903641,1741703441284,-1018.87,0.00029947,3]
[355903642,1741703441293,-500.0,0.00029947,3]
[355903643,1741703441303,-737.11,0.00029947,3]
[355903644,1741703441312,-500.0,0.00029947,3]
[355903645,1741703441321,-500.0,0.00029947,3]
[355903646,1741703441331,-797.16,0.00029947,3]
[355903647,1741703441345,-553.95670078,0.00029947,3]
[355903648,1741703441355,-673.62,0.00029947,3]
[355903649,1741703441364,-500.0,0.00029947,3]
[355903650,1741703441373,-1623.76652605,0.00029947,3]
[355903665,1741703442695,-500.0,0.00027944,2]
[355903667,1741703442705,-345.01051171,0.00027944,2]
[355903669,1741703442715,-304.42347395,0.00029947,3]
[355903671,1741703442725,-712.27,0.00029947,3]
[355903673,1741703442735,-1000.0,0.0003,120]
[355903674,1741703442744,-500.0,0.0003,3]
[355903675,1741703442754,-500.0,0.00030015,3]
[355903677,1741703442763,-500.0,0.00030032,3]
[355903678,1741703442772,-500.0,0.00030033,3]
[355903680,1741703442782,-500.0,0.00030034,3]
[355903682,1741703442791,-2333.49885624,0.00030034,2]
[355903699,1741703443146,-294.11,0.00029259,3]
[355903700,1741703443156,-519.61104228,0.00030034,2]
[355903701,1741703443167,-11946.39120646,0.00030034,2]
[355903703,1741703443183,-8759.72705793,0.00030034,2]
[355903721,1741703446108,-500.0,0.00027397,2]
[355903722,1741703446117,-500.0,0.00027671,2]
[355903723,1741703446127,-1532.41,0.00029278,3]
[355903724,1741703446137,-1532.41,0.00029552,3]
[355903725,1741703446147,-2520.97749869,0.00030034,2]
[355903726,1741703446157,-3244.88936397,0.00030038,5]
[355903727,1741703446213,-2275.67100936,0.00030038,5]
[355903747,1741703572052,-150.14954901,0.00025021,2]
[355903761,1741704318649,-171.67716314,0.00025021,2]
[355903764,1741704382422,8168.253888,0.00024868,2]
[355903765,1741704457757,8777.5065776,0.00024851,2]
[355903766,1741704459814,150.0,0.00022768,2]
[355903768,1741704519483,6972.186793,0.00024814,2]
[355903831,1741704633689,-40.91297582,0.00025021,2]
[355903832,1741704633700,-204.6990427,0.00025129,2]
[355903833,1741704633716,-32.41798148,0.00025317,2]
[355903839,1741704638188,-3936.36193282,0.00025317,2]
[355903840,1741704638199,-500.0,0.00025411,2]
[355903841,1741704638211,-181.831309,0.00025846,2]
[355903842,1741704638221,-300.0,0.00026037,2]
[355903843,1741704638232,-24900.0,0.00026038,2]
[355903844,1741704638244,-2434.93707919,0.00026457,2]
[355903845,1741704638254,-500.0,0.00026557,2]
[355903846,1741704638267,-2908.95145583,0.00026557,2]
[355903847,1741704638277,-1000.0,0.00026574,2]
[355903848,1741704638289,-1000.0,0.00026578,2]
[355903849,1741704638299,-191.89,0.00026578,2]
[355903850,1741704638310,-1000.0,0.00026849,2]
[355903851,1741704638319,-7693.8638626,0.000269,4]
[355903852,1741704638330,-200.0,0.00027,120]
[355903854,1741704638341,-941.15137747,0.00027287,2]
[355903855,1741704638351,-7693.8638626,0.00027348,4]
[355903856,1741704638360,-941.15137745,0.00027358,2]
[355903858,1741704638369,-1724.84,0.00027362,3]
[355903859,1741704638380,-275.83,0.00027362,3]
[355903860,1741704638389,-827.53,0.00027362,3]
[355903861,1741704638399,-500.0,0.00027362,2]
[355903862,1741704638415,-500.0,0.00027362,2]
[355903863,1741704638425,-500.0,0.00027362,2]
[355903864,1741704638435,-373.55495059,0.00027362,2]
[355903865,1741704638446,-500.0,0.00027362,2]
[355903866,1741704638455,-500.0,0.00027362,2]
[355903867,1741704638464,-500.0,0.00027362,2]
[355903868,1741704638474,-500.0,0.00027362,2]
[355903869,1741704638483,-500.0,0.00027362,2]
[355903870,1741704638493,-500.0,0.00027362,2]
[355903871,1741704638503,-500.0,0.00027362,2]
[355903872,1741704638513,-500.0,0.00027362,2]
[355903873,1741704638522,-500.0,0.00027362,2]
[355903874,1741704638532,-182.01637528,0.00027362,2]
[355903876,1741704638541,-500.0,0.00027362,2]
[355903878,1741704638551,-500.0,0.00027362,2]
[355903880,1741704638561,-500.0,0.00027362,2]
[355903881,1741704638571,-500.0,0.00027362,2]
[355903882,1741704638581,-500.0,0.00027362,2]
[355903883,1741704638590,-500.0,0.00027362,2]
[355903884,1741704638599,-500.0,0.00027362,2]
[355903885,1741704638609,-500.0,0.00027362,2]
[355903886,1741704638618,-500.0,0.00027362,2]
[355903887,1741704638629,-500.0,0.00027362,2]
[355903888,1741704638639,-500.0,0.00027362,2]
[355903890,1741704638649,-500.0,0.00027362,2]
[355903892,1741704638664,-500.0,0.00027362,2]
[355903893,1741704638675,-641.15779842,0.00027362,2]
[355903894,1741704638685,-500.0,0.00027362,2]
[355903895,1741704638695,-500.0,0.00027362,2]
[355903896,1741704638705,-500.0,0.00027362,2]
[355903897,1741704638716,-500.0,0.00027362,2]
[355903898,1741704638726,-500.0,0.00027362,2]
[355903899,1741704638736,-500.0,0.00027362,2]
[355903900,1741704638746,-500.0,0.00027362,2]
[355903901,1741704638756,-500.0,0.00027362,2]
[355903903,1741704638766,-500.0,0.00027362,2]
[355903904,1741704638777,-500.0,0.00027362,2]
[355903905,1741704638787,-500.0,0.00027362,2]
[355903906,1741704638797,-500.0,0.00027362,2]
[355903907,1741704638807,-500.0,0.00027362,2]
[355903908,1741704638816,-500.0,0.00027362,2]
[355903909,1741704638826,-500.0,0.00027362,2]
[355903910,1741704638836,-1103.33,0.00027363,3]
[355903911,1741704638845,-551.67,0.00027363,3]
[355903912,1741704638855,-151.0,0.00027371,2]
[355903913,1741704638865,-600.0,0.00027371,2]
[355903914,1741704638875,-898.08896734,0.00027372,2]
[355903915,1741704638885,-500.0,0.00027373,2]
[355903916,1741704638895,-502.1287628,0.00027373,2]
[355903917,1741704638905,-500.0,0.00027373,2]
[355903918,1741704638919,-508.30097734,0.00027373,2]
[355903919,1741704638929,-500.0,0.00027373,2]
[355903920,1741704638938,-160.44400778,0.00027373,2]
[355903921,1741704638949,-500.0,0.00027373,2]
[355903922,1741704638959,-499.82442643,0.00027373,2]
[355903923,1741704638969,-500.0,0.00027373,2]
[355903924,1741704638979,-597.66753732,0.00027373,2]
[355903925,1741704638990,-500.0,0.00027373,2]
[355903926,1741704639001,-511.71852189,0.00027373,2]
[355903927,1741704639011,-444.08433134,0.00027373,2]
[355903928,1741704639021,-500.0,0.00027373,2]
[355903929,1741704639031,-500.45284914,0.00027373,2]
[355903930,1741704639041,-500.0,0.00027373,2]
[355903931,1741704639051,-631.02755162,0.00027373,2]
[355903932,1741704639061,-500.0,0.00027373,2]
[355903933,1741704639071,-503.36547276,0.00027373,2]
[355903934,1741704639081,-500.0,0.00027373,2]
[355903935,1741704639092,-349.3185905,0.00027373,2]
[355903936,1741704639102,-500.0,0.00027373,2]